bitfinex-derivatives/quotes_SOLF0:USTF0_20260211
["timestamp","ask_amount","ask_price","bid_price","bid_amount"]
[1770825117015,10.87071325,79.67,79.617,11.3091]
[1770825117213,10.87071325,79.69,79.618,10.89401377]
[1770825117414,130.22,79.697,79.495,82.57]
[1770825117415,11.3035,79.657,79.603,11.3111]
[1770825117907,10.87071325,79.69,79.603,10.89393455]
[1770825118112,10.87071325,79.69,79.618,10.89393455]
[1770825119805,10.87071325,79.71,79.638,10.9016875]
[1770825120109,10.87071325,79.72,79.638,10.9016875]
[1770825120410,11.2956,79.713,79.652,10.9016875]
[1770825120709,11.3008,79.676,79.621,10.90596746]
[1770825121005,9.65776211,79.727,79.631,10.90596746]
[1770825121216,11.2977,79.698,79.647,11.3049]
[1770825121400,11.2977,79.698,79.631,10.90596746]
[1770825121706,10.87071325,79.72,79.631,10.90596746]
[1770825121910,11.2965,79.707,79.653,11.304]
[1770825122110,10.87071325,79.72,79.631,10.90596746]
[1770825122311,10.87071325,79.72,79.665,11.3023]
[1770825122616,147.5,79.739,79.665,11.3023]
[1770825122909,11.2934,79.729,79.673,11.3011]
[1770825123110,10.87071325,79.74,79.674,10.79529071]
[1770825123299,147.78,79.761,79.674,10.79529071]
[1770825123505,11.2873,79.772,79.711,11.2958]
[1770825123706,10.87071325,79.77,79.699,10.7952189]
[1770825123911,10.87071325,79.78,79.699,10.7952189]
[1770825124109,11.2917,79.74,79.678,11.3004]
[1770825124309,10.87071325,79.74,79.671,10.7952189]
[1770825124904,10.79751457,79.73,79.662,11.3027]
[1770825125108,10.79751457,79.73,79.623,117.62]
[1770825125109,10.79751457,79.71,79.621,10.7976282]
[1770825125414,147.9,79.729,79.621,10.7976282]
[1770825125805,147.9,79.729,79.62,10.79751457]
[1770825125806,11.2948,79.718,79.65,10.79756043]
[1770825126018,147.9,79.729,79.65,10.79756043]
[1770825126222,10.79751457,79.73,79.65,10.79756043]
[1770825127011,11.2934,79.728,79.663,22.10506464]
[1770825127315,10.79751457,79.73,79.664,10.80256464]
[1770825127520,11.2944,79.721,79.664,10.80256464]
[1770825128117,10.79751457,79.73,79.664,10.80256464]
[1770825130115,10.79751457,79.73,79.667,10.80151381]
[1770825130315,147.94,79.749,79.667,10.80151381]
[1770825130509,10.79751457,79.73,79.667,10.80151381]
[1770825130716,11.294,79.724,79.671,11.3014]
[1770825130911,10.79751457,79.73,79.641,10.80329862]
[1770825131112,10.79751457,79.71,79.641,10.80329862]
[1770825131327,10.79751457,79.71,79.633,11.3068]
[1770825131328,11.2993,79.687,79.633,11.3068]
[1770825131624,10.79751457,79.71,79.623,10.80323793]
[1770825132122,10.79751457,79.73,79.641,10.80323793]
[1770825132319,11.2933,79.729,79.669,10.80312375]
[1770825132526,10.79751457,79.75,79.669,10.80312375]
[1770825133018,10.79751457,79.75,79.66,10.79751457]
[1770825133019,11.2908,79.747,79.692,11.2985]
[1770825133220,10.79751457,79.77,79.693,10.80312375]
[1770825133414,10.79751457,79.75,79.675,10.80306648]
[1770825134213,10.79751457,79.75,79.686,22.10236648]
[1770825134421,10.79751457,79.77,79.687,10.80306648]
[1770825134619,10.79751457,79.75,79.687,10.80306648]
[1770825134822,11.2909,79.746,79.688,11.299]
[1770825135127,10.79751457,79.75,79.669,10.78798824]
[1770825135325,10.79751457,79.73,79.651,10.78798824]
[1770825135622,11.2949,79.718,79.661,10.78793111]
[1770825135814,10.79751457,79.73,79.631,10.78793111]
[1770825136016,10.79751457,79.73,79.681,11.3]
[1770825136220,147.88,79.749,79.682,10.78793111]
[1770825136422,10.79751457,79.75,79.682,10.78793111]
[1770825136620,10.79751457,79.75,79.696,11.2979]
[1770825136925,3.18955644,79.799,79.711,6.86719629]
[1770825137123,3.18955644,79.779,79.711,6.86719629]
[1770825137330,14.4760614,79.778,79.717,6.86719629]
[1770825137517,3.19740059,79.777,79.699,6.86719629]
[1770825137716,10.79751457,79.8,79.663,155.2]
[1770825137717,3.19740059,79.759,79.681,6.86719629]
[1770825137920,10.79751457,79.74,79.686,11.2992]
[1770825138525,10.79751457,79.76,79.694,11.2982]
[1770825138720,10.79751457,79.76,79.681,6.86719629]
[1770825138721,10.79751457,79.76,79.695,6.86719629]
[1770825139018,3.47422482,79.759,79.695,6.86719629]
[1770825139425,10.79751457,79.76,79.695,6.86719629]
[1770825139823,14.2777143,79.76,79.695,6.86719629]
[1770825140024,3.48019973,79.75,79.671,6.86719629]
[1770825140327,3.48019973,79.75,79.615,175.9236]
[1770825140328,3.48748039,79.799,79.701,6.86719629]
[1770825140726,10.79751457,79.78,79.701,6.86719629]
[1770825140932,3.59437831,79.799,79.701,6.86719629]
[1770825141530,148.88,79.827,79.701,6.86719629]
[1770825141531,3.6002662,79.779,79.701,6.36180068]
[1770825142230,11.2867,79.776,79.714,11.2954]
[1770825142422,3.6002662,79.779,79.715,6.36180068]
[1770825142829,14.8865662,79.779,79.729,11.2932]
[1770825143027,14.8865662,79.779,79.715,6.36180068]
[1770825143437,3.86386886,79.776,79.715,6.36180068]
[1770825143631,3.87105579,79.759,79.681,6.36180068]
[1770825143838,11.2895,79.756,79.698,11.2976]
[1770825144034,3.87105579,79.759,79.681,6.36180068]
[1770825144831,3.81994202,79.784,79.701,6.36180068]
[1770825145036,329.4288858,79.818,79.7,10.79751457]
[1770825145037,11.284,79.795,79.729,6.36180068]
[1770825145232,3.81994202,79.802,79.729,6.36180068]
[1770825145536,3.82569608,79.799,79.746,11.2908]
[1770825145929,3.82569608,79.799,79.729,6.36180068]
[1770825147136,22.5531,79.848,79.729,6.36180068]
[1770825147137,3.70086993,79.82,79.729,6.36180068]
[1770825147329,3.70474851,79.803,79.756,11.2894]
[1770825147529,3.70474851,79.803,79.729,6.36180068]
[1770825147931,3.70474851,79.803,79.751,11.2901]
[1770825148129,10.79751457,79.79,79.729,6.36180068]
[1770825148735,3.68079185,79.789,79.729,6.36180068]
[1770825148938,3.68079185,79.789,79.711,6.80380151]
[1770825149940,14.48373499,79.77,79.711,6.80380151]
[1770825150140,3.68622042,79.789,79.711,6.80380151]
[1770825150538,148.78,79.803,79.711,6.80380151]
[1770825150539,10.79751457,79.8,79.711,6.80380151]
[1770825150940,3.68832887,79.807,79.731,6.80380151]
[1770825151128,11.2829,79.803,79.753,11.2898]
[1770825151335,10.79751457,79.8,79.753,11.2898]
[1770825151641,10.79751457,79.8,79.731,6.80380151]
[1770825151841,3.69354649,79.787,79.735,11.2923]
[1770825152035,3.69354649,79.787,79.731,6.80380151]
[1770825152236,3.69354649,79.787,79.701,154.4]
[1770825152237,3.69354649,79.787,79.713,6.80380151]
[1770825152437,3.69354649,79.787,79.733,11.2927]
[1770825152438,11.2865,79.778,79.733,11.2927]
[1770825152743,3.69354649,79.787,79.733,11.2927]
[1770825152933,10.79751457,79.8,79.73,6.80380151]
[1770825153746,11.2834,79.799,79.749,11.2904]
[1770825154045,3.71024326,79.808,79.73,6.80380151]
[1770825154742,10.79751457,79.8,79.73,6.80380151]
[1770825154935,3.71024326,79.808,79.759,11.289]
[1770825155245,9.62669291,79.834,79.73,6.80380151]
[1770825155246,3.71464706,79.799,79.73,6.80380151]
[1770825155648,11.2838,79.796,79.743,11.2912]
[1770825155938,9.62669291,79.828,79.73,6.80380151]
[1770825155939,3.71962661,79.795,79.73,6.80380151]
[1770825156537,11.2835,79.799,79.73,6.80380151]
[1770825156940,3.73063676,79.789,79.704,6.80380151]
[1770825157751,15.01543676,79.789,79.736,11.2923]
[1770825158033,3.73063676,79.789,79.71,6.80380151]
[1770825158239,10.79751457,79.79,79.71,6.80380151]
[1770825158444,10.79751457,79.79,79.749,11.2904]
[1770825158635,3.73546223,79.808,79.731,6.80380151]
[1770825158835,11.2828,79.803,79.756,11.2894]
[1770825159238,11.2828,79.803,79.731,6.80380151]
[1770825159444,3.73546223,79.808,79.756,11.2894]
[1770825160345,3.8517427,79.789,79.731,6.80380151]
[1770825162342,11.286,79.781,79.737,11.292]
[1770825162543,3.8517427,79.789,79.737,11.292]
[1770825163453,3.8517427,79.789,79.747,11.2906]
[1770825163637,3.8517427,79.789,79.731,6.80380151]
[1770825164549,3.84925556,79.785,79.713,6.80380151]
[1770825164744,3.84925556,79.769,79.713,6.80380151]
[1770825165151,11.2873,79.772,79.729,11.2933]
[1770825165351,3.84925556,79.786,79.713,6.80380151]
[1770825165550,515.82973967,79.865,79.755,6.80380151]
[1770825165551,11.2831,79.801,79.755,6.80380151]
[1770825165753,22.5567,79.835,79.696,175.7452]
[1770825165754,10.79751457,79.79,79.721,6.80380151]
[1770825166052,10.79751457,79.79,79.738,6.80380151]
[1770825166247,10.93634861,79.805,79.738,6.80380151]
[1770825166448,3.85663856,79.803,79.738,6.80380151]
[1770825166754,3.85663856,79.789,79.72,6.80380151]
[1770825167156,10.79751457,79.79,79.72,6.80380151]
[1770825167757,3.85663856,79.791,79.72,6.80380151]
[1770825168157,3.86102679,79.789,79.72,6.80380151]
[1770825168651,11.2858,79.782,79.739,11.2918]
[1770825169060,3.86102679,79.789,79.72,6.80380151]
[1770825169253,10.9346674,79.805,79.72,6.80380151]
[1770825169452,3.85098946,79.804,79.72,6.80380151]
[1770825169856,3.85624267,79.802,79.72,6.80380151]
[1770825170058,3.85624267,79.801,79.72,6.80380151]
[1770825170259,3.85624267,79.799,79.72,6.80380151]
[1770825170460,11.2849,79.789,79.748,11.2905]
[1770825170856,3.85624267,79.799,79.741,7.02479387]
[1770825171660,3.85624267,79.799,79.762,11.2885]
[1770825172059,7.08272651,79.805,79.741,7.02479387]
[1770825172461,2.651e-05,79.805,79.741,7.02479387]
[1770825172655,2.651e-05,79.805,79.744,7.02479387]
[1770825172962,2.651e-05,79.805,79.763,7.02479387]
[1770825173862,2.651e-05,79.805,79.741,7.02479387]
[1770825174067,3.79383308,79.805,79.741,7.02479387]
[1770825174668,11.2827,79.804,79.758,11.289]
[1770825175766,11.2827,79.804,79.764,11.2882]
[1770825175964,3.79383308,79.805,79.764,11.2882]
[1770825176160,3.79383308,79.805,79.741,7.02479387]
[1770825176958,3.85598606,79.799,79.751,11.2901]
[1770825177157,11.285,79.788,79.741,7.02479387]
[1770825177357,3.85598606,79.799,79.739,11.2918]
[1770825177563,3.85976425,79.797,79.739,11.2918]
[1770825177765,15.14666425,79.775,79.723,7.02479387]
[1770825178772,15.14666425,79.775,79.735,11.2923]
[1770825179864,15.14666425,79.775,79.728,11.2934]
[1770825180065,15.14666425,79.775,79.696,639.56896543]
[1770825180066,3.82965758,79.765,79.697,7.02479387]
[1770825180263,3.82965758,79.759,79.697,7.02479387]
[1770825180465,10.79751457,79.76,79.697,7.02479387]
[1770825180768,3.83120122,79.759,79.697,7.02479387]
[1770825180964,3.83120122,79.759,79.67,10.79751457]
[1770825180965,3.83120122,79.757,79.692,7.02479387]
[1770825181269,9.56885315,79.756,79.692,7.02479387]
[1770825181465,9.56885315,79.755,79.702,11.2971]
[1770825181673,9.56885315,79.754,79.702,11.2971]
[1770825181868,3.83120122,79.757,79.692,7.02479387]
[1770825182065,3.83120122,79.757,79.716,11.2951]
[1770825182272,3.83481873,79.774,79.709,7.02479387]
[1770825182461,3.84629523,79.772,79.709,7.02479387]
[1770825182666,3.85074973,79.766,79.713,11.2954]
[1770825182869,3.85074973,79.759,79.691,7.02479387]
[1770825183073,3.85074973,79.778,79.691,7.02479387]
[1770825183271,3.85074973,79.776,79.691,7.02479387]
[1770825183473,3.84991617,79.774,79.691,7.02479387]
[1770825183675,3.85430465,79.772,79.691,7.02479387]
[1770825183977,3.85430465,79.759,79.707,11.2963]
[1770825184278,3.85430465,79.759,79.691,7.02479387]
[1770825184672,3.86415063,79.758,79.671,7.02479387]
[1770825184871,22.5724,79.78,79.671,7.02479387]
[1770825184872,3.86415063,79.739,79.671,7.02479387]
[1770825185065,9.5768593,79.738,79.671,7.02479387]
[1770825185270,3.86415063,79.739,79.671,7.02479387]
[1770825185466,9.57866542,79.738,79.671,7.02479387]
[1770825185677,3.86762604,79.756,79.696,7.02479387]
[1770825185876,9.5763459,79.755,79.696,7.02479387]
[1770825186071,3.86762604,79.756,79.696,7.02479387]
[1770825186477,9.57511732,79.755,79.696,7.02479387]
[1770825186765,9.57511732,79.754,79.713,11.2955]
[1770825186970,3.86762604,79.756,79.713,11.2955]
[1770825187172,3.86762604,79.756,79.696,7.02479387]
[1770825187173,9.5756674,79.755,79.696,7.02479387]
[1770825187372,9.57310331,79.769,79.696,7.02479387]
[1770825187574,10.78800645,79.77,79.696,7.02479387]
[1770825187773,9.57309779,79.769,79.696,7.02479387]
[1770825187972,11.2857,79.783,79.737,11.2921]
[1770825188169,9.57298135,79.782,79.722,7.02479387]
[1770825188373,9.57298135,79.781,79.745,11.2909]
[1770825188576,2.651e-05,79.805,79.741,7.02479387]
[1770825188877,9.56961344,79.804,79.741,7.02479387]
[1770825189080,9.56961344,79.803,79.76,11.2889]
[1770825189271,9.56961344,79.802,79.76,11.2889]
[1770825189471,2.651e-05,79.805,79.741,7.02479387]
[1770825189672,2.651e-05,79.805,79.759,7.02479387]
[1770825190177,9.5700521,79.804,79.759,7.02479387]
[1770825190379,9.5700521,79.803,79.759,7.02479387]
[1770825190576,2.651e-05,79.805,79.767,11.2878]
[1770825190775,2.651e-05,79.805,79.759,7.02479387]
[1770825191173,2.651e-05,79.805,79.773,7.02479387]
[1770825192081,2.651e-05,79.805,79.779,11.2861]
[1770825192487,2.651e-05,79.805,79.723,175.6849]
[1770825192488,2.651e-05,79.805,79.763,11.2883]
[1770825192680,2.651e-05,79.805,79.754,7.02479387]
[1770825193681,2.651e-05,79.805,79.77,7.02479387]
[1770825194673,2.651e-05,79.805,79.788,11.2849]
[1770825195080,2.651e-05,79.805,79.77,7.02479387]
[1770825195786,2.651e-05,79.805,79.781,7.02479387]
[1770825196384,9.6214358,79.868,79.802,7.02479387]
[1770825196578,14.34172047,79.887,79.802,7.02479387]
[1770825196779,4.72028467,79.887,79.823,7.02479387]
[1770825197381,11.2683,79.907,79.844,11.277]
[1770825197591,10.78800645,79.91,79.841,7.02479387]
[1770825197779,9.6214358,79.914,79.841,7.02479387]
[1770825198079,4.72352117,79.922,79.862,11.2743]
[1770825198284,4.72352117,79.922,79.859,7.02479387]
[1770825198481,4.72352117,79.922,79.868,11.2736]
[1770825199179,4.72060681,79.909,79.857,11.2751]
[1770825199379,4.72368502,79.889,79.819,7.02479387]
[1770825200080,4.72368502,79.888,79.801,7.02479387]
[1770825200481,4.72724771,79.886,79.821,11.2802]
[1770825200781,4.72724771,79.869,79.801,7.02479387]
[1770825201090,11.68962148,79.917,79.785,153.06]
[1770825201091,4.72724771,79.887,79.847,11.2766]
[1770825201287,4.72724771,79.887,79.83,6.59692336]
[1770825201690,4.73030451,79.909,79.83,6.59692336]
[1770825202278,4.73030451,79.906,79.846,11.2767]
[1770825202891,10.78800645,79.89,79.83,6.59692336]
[1770825203687,4.75993704,79.886,79.827,11.2794]
[1770825204790,10.78800645,79.89,79.827,11.2794]
[1770825204791,4.72590356,79.882,79.827,11.2794]
[1770825204992,4.72590356,79.882,79.835,11.2782]
[1770825205184,4.72590356,79.886,79.794,6.59692336]
[1770825205389,10.78800645,79.89,79.834,6.59692336]
[1770825205587,4.72877635,79.904,79.834,6.59692336]
[1770825205786,10.78800645,79.91,79.834,6.59692336]
[1770825205985,10.78800645,79.91,79.856,11.2752]
[1770825206191,4.72877635,79.909,79.833,6.59692336]
[1770825206395,15.99657635,79.909,79.833,6.59692336]
[1770825206693,175.1653,79.961,79.808,22.5642]
[1770825206694,10.78800645,79.92,79.85,7.11415523]
[1770825207080,4.75355166,79.927,79.85,7.11415523]
[1770825207285,4.75355166,79.927,79.851,7.11415523]
[1770825207986,4.75355166,79.927,79.873,11.2729]
[1770825208187,4.75636233,79.889,79.801,7.11415523]
[1770825208695,4.75636233,79.889,79.823,7.11415523]
[1770825208889,4.59709926,79.869,79.8,7.11415523]
[1770825209588,10.78800645,79.85,79.8,7.11415523]
[1770825209892,4.59709926,79.869,79.8,7.11415523]
[1770825211191,10.78800645,79.85,79.769,7.11415523]
[1770825212089,10.78800645,79.85,79.792,7.11415523]
[1770825212889,10.78800645,79.85,79.796,11.2837]
[1770825213392,10.78800645,79.85,79.805,11.2824]
[1770825213785,10.78800645,79.85,79.792,7.11415523]
[1770825214183,111.7,79.882,79.768,152.82]
[1770825214184,4.41230368,79.89,79.801,7.11415523]
[1770825214384,15.19632266,79.91,79.821,7.11415523]
[1770825214690,4.40831621,79.909,79.856,11.2752]
[1770825214887,4.40831621,79.909,79.839,7.11415523]
[1770825215083,4.40831621,79.909,79.821,7.11415523]
[1770825215284,4.40831621,79.899,79.845,11.2767]
[1770825216092,4.40831621,79.899,79.821,7.11415523]
[1770825217796,4.40831621,79.899,79.853,11.2756]
[1770825218487,4.40831621,79.899,79.839,7.11415523]
[1770825219195,4.40831621,79.899,79.851,11.2759]
[1770825219390,4.40831621,79.899,79.839,7.11415523]
[1770825220295,4.63747382,79.916,79.839,7.11415523]
[1770825221593,4.63747382,79.916,79.868,11.2736]
[1770825222193,4.63347208,79.914,79.868,11.2736]
[1770825222390,4.63347208,79.899,79.82,7.11415523]
[1770825222786,4.64474934,79.897,79.82,7.11415523]
[1770825223193,4.64474934,79.897,79.85,11.276]
[1770825224394,4.64703572,79.879,79.82,7.11415523]
[1770825225694,4.64703572,79.879,79.835,11.2782]
[1770825226102,4.67842192,79.897,79.82,7.11415523]
[1770825226599,4.67842192,79.897,79.843,7.11415523]
[1770825227800,4.67842192,79.897,79.857,11.2751]
[1770825229405,11.2697,79.896,79.857,11.2751]
[1770825230604,4.5785698,79.879,79.804,6.46380923]
[1770825231608,15.8507698,79.879,79.82,6.66661717]
[1770825231803,4.5785698,79.879,79.82,6.66661717]
[1770825232203,11.273,79.873,79.832,11.2786]
[1770825232705,11.273,79.873,79.825,11.2797]
[1770825232904,4.48082421,79.859,79.799,6.66661717]
[1770825233703,15.75582421,79.859,79.816,11.2808]
[1770825235008,4.48508542,79.839,79.779,6.66661717]
[1770825235305,4.48508542,79.879,79.781,6.66661717]
[1770825235617,4.48715431,79.877,79.781,6.66661717]
[1770825235814,4.48715431,79.875,79.81,6.66661717]
[1770825236107,11.68962148,79.916,79.81,6.66661717]
[1770825236310,15.31835934,79.92,79.854,7.17786894]
[1770825236311,10.78800645,79.92,79.854,7.17786894]
[1770825237410,10.78800645,79.9,79.833,7.18740685]
[1770825237605,10.78800645,79.92,79.833,7.18740685]
[1770825237909,10.78800645,79.92,79.81,10.78800645]
[1770825237910,10.78800645,79.92,79.854,7.18785412]
[1770825238112,10.78800645,79.94,79.854,7.18785412]
[1770825238813,11.2641,79.936,79.884,11.2712]
[1770825239007,10.78800645,79.94,79.876,7.2109958]
[1770825239908,10.78800645,79.94,79.901,11.2689]
[1770825240311,10.78800645,79.94,79.876,7.2109958]
[1770825240511,11.68962148,79.969,79.876,7.2109958]
[1770825240706,10.78800645,79.97,79.876,7.2109958]
[1770825241114,10.78800645,79.96,79.876,7.2109958]
[1770825241610,10.78800645,79.94,79.876,7.2109958]
[1770825241810,10.78800645,79.94,79.856,7.21643386]
[1770825242415,11.2628,79.945,79.883,7.22381482]
[1770825242605,10.78800645,79.95,79.883,7.22381482]
[1770825242915,10.78800645,79.97,79.883,7.22381482]
[1770825243114,11.26,79.965,79.91,11.2676]
[1770825243417,10.78800645,79.97,79.883,7.22381482]
[1770825243618,10.78800645,79.97,79.909,11.2678]
[1770825244412,0.1416569,79.958,79.9,11.2691]
[1770825245110,0.1416569,79.958,79.899,7.13219149]
[1770825245617,0.14611855,79.948,79.891,11.2703]
[1770825246013,11.41061855,79.933,79.881,18.40437726]
[1770825246221,0.14611855,79.932,79.881,11.2718]
[1770825246620,11.2648,79.931,79.881,11.2718]
[1770825247511,11.2648,79.931,79.863,7.13257726]
[1770825247512,10.74280458,79.94,79.889,11.2706]
[1770825249421,10.74280458,79.94,79.882,7.1694607]
[1770825249422,11.264,79.937,79.882,7.1694607]
[1770825249721,0.10970854,79.936,79.88,11.2718]
[1770825250323,0.10970854,79.933,79.87,11.2732]
[1770825251118,11.2663,79.92,79.87,11.2732]
[1770825253017,0.10970854,79.933,79.865,7.16114544]
[1770825253716,0.13123143,79.91,79.847,7.16014268]
[1770825254322,10.74280458,79.92,79.847,7.16014268]
[1770825254716,10.74280458,79.92,79.874,11.2727]
[1770825254916,11.266,79.922,79.865,7.15894609]
[1770825255117,0.13836236,79.919,79.815,7.15894609]
[1770825255422,0.13836236,79.919,79.821,7.15894609]
[1770825255624,0.13836236,79.919,79.841,7.15929732]
[1770825255922,0.14234418,79.934,79.873,11.2729]
[1770825256225,0.14234418,79.919,79.85,7.15929732]
[1770825256920,0.13270865,79.899,79.821,7.16644578]
[1770825257426,10.74280458,79.9,79.845,7.16679354]
[1770825257925,0.13664188,79.913,79.845,7.16679354]
[1770825258120,0.13664188,79.912,79.845,7.16679354]
[1770825258322,9.54518618,79.911,79.845,7.16679354]
[1770825258625,0.1079063,79.909,79.848,7.18343449]
[1770825258824,0.1079063,79.899,79.821,7.18343449]
[1770825259820,11.2708,79.888,79.841,11.2773]
[1770825260020,0.1079063,79.899,79.842,7.18377878]
[1770825260418,11.2708,79.888,79.842,18.46097878]
[1770825260619,0.1079063,79.899,79.842,7.18377878]
[1770825261217,31.03464935,79.971,79.842,7.18377878]
[1770825261218,0.12773381,79.916,79.842,7.18377878]
[1770825262728,11.2681,79.908,79.867,11.2736]
[1770825263933,10.74280458,79.91,79.842,7.18377878]
[1770825264832,10.74280458,79.93,79.858,7.19993925]
[1770825265021,0.12711041,79.929,79.831,7.19993925]
[1770825265220,10.74280458,79.93,79.831,7.19993925]
[1770825265221,0.12711041,79.927,79.831,7.19993925]
[1770825265430,0.12711041,79.925,79.831,7.19993925]
[1770825265721,37.78,79.947,79.785,175.5505]
[1770825265722,0.13041552,79.909,79.858,11.2749]
[1770825266731,11.27,79.894,79.858,11.2749]
[1770825267429,11.27,79.894,79.851,11.276]
[1770825268728,11.2709,79.888,79.844,11.2769]
[1770825268927,11.2709,79.888,79.845,7.24043723]
[1770825269126,0.12341945,79.912,79.845,7.24043723]
[1770825269533,143.28,79.94,79.866,7.24043723]
[1770825269534,0.12648079,79.929,79.866,7.24043723]
[1770825269935,0.12648079,79.946,79.866,7.24043723]
[1770825270434,9.55201528,79.959,79.884,7.24043723]
[1770825270633,0.12648079,79.963,79.884,7.24043723]
[1770825270838,0.12648079,79.963,79.87,10.74280458]
[1770825270839,0.12648079,79.963,79.918,11.2665]
[1770825271135,0.12648079,79.963,79.907,7.24043723]
[1770825272137,11.2605,79.961,79.917,11.2667]
[1770825272338,0.10570404,79.979,79.907,7.24043723]
[1770825272536,0.17121244,79.998,79.946,11.2626]
[1770825272831,0.17121244,79.998,79.886,175.3279]
[1770825272832,11.61158392,80.057,79.961,7.24043723]
[1770825273037,0.17121244,80.058,79.961,7.24043723]
[1770825273238,0.17121244,80.058,79.96,10.74280458]
[1770825273239,0.17121244,80.058,79.984,7.24043723]
[1770825273834,0.17121244,80.058,79.987,7.24043723]
[1770825274629,0.30959852,80.019,79.951,7.24043723]
[1770825274836,0.30959852,79.999,79.933,7.24043723]
[1770825275035,0.30959852,79.994,79.918,7.24043723]
[1770825275233,0.30959852,80.014,79.93,10.74280458]
[1770825275434,0.30959852,80.014,79.931,7.24043723]
[1770825275739,0.30959852,80.014,79.942,7.24043723]
[1770825276135,144.27253333,80.031,79.942,7.24043723]
[1770825276436,0.31253333,80.049,79.971,7.24043723]
[1770825276732,10.74280458,80.05,79.979,18.49833723]
[1770825276733,11.63181085,80.048,79.979,18.49833723]
[1770825276939,0.38351085,80.047,79.951,7.24043723]
[1770825277340,0.38351085,80.042,79.978,18.49853723]
[1770825277527,10.74280458,80.03,79.978,7.24043723]
[1770825277729,0.38640373,80.029,79.95,10.74280458]
[1770825277929,0.38640373,80.029,79.951,7.24043723]
[1770825278634,0.38640373,80.029,79.967,7.24043723]
[1770825279341,0.67081394,80.048,79.967,7.24043723]
[1770825279539,0.67367909,80.046,79.969,7.24043723]
[1770825279737,10.74280458,80.03,79.969,7.24043723]
[1770825280142,0.67367909,80.029,79.951,7.24043723]
[1770825280743,0.67480682,80.024,79.951,7.24043723]
[1770825281239,11.92860682,80.009,79.951,7.24043723]
[1770825281740,0.67755591,80.008,79.951,7.24043723]
[1770825282533,10.74280458,80.03,79.954,7.24043723]
[1770825282534,0.68214878,80.026,79.954,7.24043723]
[1770825283141,0.68214878,80.024,79.957,11.261]
[1770825283638,0.68214878,80.024,79.954,7.24043723]
[1770825284748,0.70692225,80.019,79.954,7.24043723]
[1770825286946,0.70534299,80.037,79.954,7.24043723]
[1770825287249,0.70534299,80.029,79.954,7.24043723]
[1770825287644,11.2526,80.017,79.966,11.2598]
[1770825288649,11.2512,80.028,79.974,11.2586]
[1770825288849,0.68328267,80.027,79.974,11.2586]
[1770825289348,11.2519,80.023,79.967,7.24043723]
[1770825289648,0.68328267,80.027,79.967,7.24043723]
[1770825290047,11.2532,80.014,79.967,7.24043723]
[1770825290446,11.2532,80.014,79.93,10.74280458]
[1770825290447,0.70370257,80.009,79.954,11.2615]
[1770825291354,11.2544,80.005,79.954,11.2615]
[1770825291649,11.2544,80.005,79.957,11.261]
[1770825293151,11.2544,80.005,79.957,18.26083636]
[1770825293646,0.70370257,80.009,79.96,18.26061033]
[1770825293839,10.74280458,80.01,79.961,7.00001033]
[1770825294044,11.2537,80.01,79.963,11.2602]
[1770825294249,0.63159155,80.009,79.944,7.00001033]
[1770825294449,0.61710245,80.027,79.944,7.00001033]
[1770825294647,11.2516,80.025,79.976,11.2583]
[1770825295046,0.61710245,80.024,79.951,7.00859736]
[1770825295247,0.61710245,80.024,79.966,7.00859736]
[1770825296950,11.2534,80.012,79.966,7.00859736]
[1770825297153,10.74280458,80.03,79.954,11.2615]
[1770825297154,0.62658475,80.009,79.954,11.2615]
[1770825297455,0.62658475,80.009,79.877,175.3463]
[1770825297456,11.37169174,79.99,79.901,7.00660623]
[1770825298353,0.62888716,79.989,79.901,7.00660623]
[1770825298756,11.2578,79.981,79.922,7.0093259]
[1770825299354,0.6257295,79.969,79.904,7.00949022]
[1770825300449,10.74280458,79.95,79.904,7.00949022]
[1770825300750,0.58658231,79.979,79.904,7.00949022]
[1770825301146,11.84458231,79.979,79.923,11.2657]
[1770825301342,0.58658231,79.979,79.924,7.03163979]
[1770825301555,0.58658231,79.979,79.77,38.6608303]
[1770825301556,0.58658231,79.979,79.909,11.2678]
[1770825301748,0.58877208,79.959,79.905,7.03180439]
[1770825302954,0.61473602,79.959,79.905,7.03180439]
[1770825303149,0.61473602,79.959,79.906,11.2682]
[1770825303150,11.2621,79.95,79.906,11.2682]
[1770825303358,0.61473602,79.959,79.906,11.2682]
[1770825303855,11.50364029,80.013,79.853,324.9199]
[1770825303856,10.74280458,79.98,79.924,7.02027777]
[1770825304154,0.61685384,79.979,79.924,7.02027777]
[1770825304558,11.2601,79.964,79.924,7.02027777]
[1770825305757,11.259,79.972,79.925,11.2655]
[1770825306161,11.259,79.972,79.876,22.5448]
[1770825306162,0.61685384,79.979,79.907,6.99990425]
[1770825306455,11.261,79.958,79.907,6.99990425]
[1770825307056,11.2599,79.966,79.915,7.00680797]
[1770825307563,11.2599,79.966,79.919,11.2663]